bitfinex-derivatives/quotes_BTCF0:USTF0_20240820
["timestamp","ask_amount","ask_price","bid_price","bid_amount"]
[1724132619186,3.7774918,61100.0,61099.0,0.66798649]
[1724132619388,3.7774918,61100.0,61099.0,0.13608514]
[1724132620085,3.7774918,61100.0,61099.0,0.20094792]
[1724132620284,3.7774918,61100.0,61099.0,0.13608514]
[1724132622181,3.7774918,61100.0,61099.0,0.11052301]
[1724132622383,3.7774918,61100.0,61099.0,0.13608678]
[1724132623082,3.7774918,61100.0,61099.0,0.49688678]
[1724132625902,0.2825,61110.0,61099.0,0.49688678]
[1724132625903,0.04896645,61110.0,61099.0,0.6515805]
[1724132626092,0.04896645,61110.0,61106.0,0.06489477]
[1724132626293,0.00024553,61112.0,61110.0,0.0795201]
[1724132626585,3.77,61111.0,61110.0,0.0795201]
[1724132627098,3.77,61111.0,61110.0,0.14441487]
[1724132627293,3.77,61111.0,61110.0,0.0795201]
[1724132628504,3.77,61111.0,61110.0,0.10507969]
[1724132628697,3.77,61111.0,61110.0,0.12256787]
[1724132628890,3.777,61111.0,61110.0,0.12356787]
[1724132629086,3.784,61111.0,61110.0,0.12456787]
[1724132629700,3.784,61111.0,61110.0,0.13567108]
[1724132630293,3.784,61111.0,61110.0,0.09262331]
[1724132630593,3.784,61111.0,61110.0,0.13566821]
[1724132631493,3.784,61111.0,61110.0,0.18299331]
[1724132631693,3.784,61111.0,61110.0,0.09262331]
[1724132631892,3.784,61111.0,61110.0,0.13567124]
[1724132632098,3.784,61111.0,61110.0,0.1181837]
[1724132632400,3.784,61111.0,61110.0,0.20048348]
[1724132633602,3.7862459,61111.0,61110.0,0.17492309]
[1724132634306,3.7862459,61111.0,61110.0,0.09262331]
[1724132634495,3.7862459,61111.0,61110.0,0.1101109]
[1724132635189,3.7862459,61111.0,61110.0,0.13567054]
[1724132636012,3.7862459,61111.0,61110.0,0.09262331]
[1724132636196,3.7862459,61111.0,61110.0,0.13567054]
[1724132637506,3.7862459,61111.0,61110.0,0.20048276]
[1724132637896,3.7862459,61111.0,61110.0,0.13567054]
[1724132638806,3.7862459,61111.0,61110.0,0.13567052]
[1724132639308,3.7862459,61111.0,61110.0,0.11011093]
[1724132639493,3.7862459,61111.0,61110.0,0.20048282]
[1724132641192,3.7862459,61111.0,61110.0,0.1356706]
[1724132641393,3.7884918,61111.0,61110.0,0.1356706]
[1724132641602,3.83741045,61111.0,61110.0,0.1356706]
[1724132641903,3.7884918,61111.0,61110.0,0.1356675]
[1724132643304,3.7884918,61111.0,61110.0,0.18427133]
[1724132644408,3.7884918,61111.0,61110.0,0.1356675]
[1724132645309,3.85368741,61111.0,61110.0,0.1356675]
[1724132645811,3.85368741,61111.0,61110.0,0.11818275]
[1724132646002,3.85368741,61111.0,61110.0,0.13566707]
[1724132646313,3.7884918,61111.0,61110.0,0.13566707]
[1724132648110,3.85368741,61111.0,61110.0,0.18432925]
[1724132648311,3.99198741,61111.0,61110.0,0.18432925]
[1724132648707,3.99258791,61111.0,61110.0,0.18432925]
[1724132649217,3.9273923,61111.0,61110.0,0.13566707]
[1724132650003,3.9273923,61111.0,61110.0,0.09262331]
[1724132650207,3.9273923,61111.0,61110.0,0.47898255]
[1724132650404,3.9273923,61111.0,61110.0,0.45342331]
[1724132650709,0.04897492,61122.0,61110.0,1.22620628]
[1724132650916,0.04897492,61122.0,61121.0,0.081752]
[1724132651106,3.77,61122.0,61121.0,0.14662942]
[1724132652017,3.777,61122.0,61121.0,0.14662942]
[1724132652218,3.791,61122.0,61121.0,0.14762942]
[1724132652811,3.791,61122.0,61121.0,0.082752]
[1724132653116,3.791,61122.0,61121.0,0.12578161]
[1724132653314,3.83997492,61122.0,61121.0,0.12578161]
[1724132653513,3.791,61122.0,61121.0,0.12578161]
[1724132653713,3.797,61122.0,61121.0,0.12678161]
[1724132653906,3.797,61122.0,61121.0,0.12678315]
[1724132654111,3.797,61122.0,61121.0,0.12678475]
[1724132654907,3.797,61122.0,61121.0,0.10122896]
[1724132655110,3.797,61122.0,61121.0,0.01947696]
[1724132655719,3.797,61122.0,61121.0,0.04503333]
[1724132656716,3.797,61122.0,61121.0,0.05596352]
[1724132659228,3.797,61122.0,61121.0,0.13771552]
[1724132660129,3.797,61122.0,61121.0,0.12023856]
[1724132660528,3.9101,61122.0,61121.0,0.02755637]
[1724132660726,4.2709,61122.0,61118.0,0.06487202]
[1724132660928,0.1131,61119.0,61117.0,0.06487202]
[1724132661132,0.1131,61119.0,61116.0,0.01129376]
[1724132661133,0.1492,61118.0,61116.0,0.01129376]
[1724132661441,0.230956,61118.0,61117.0,0.02555885]
[1724132661632,0.344056,61118.0,61117.0,0.02555885]
[1724132661837,4.114056,61118.0,61117.0,0.02555885]
[1724132662337,4.114056,61118.0,61115.0,0.06511755]
[1724132662338,4.126056,61118.0,61116.0,0.001]
[1724132662533,0.33168223,61117.0,61116.0,0.001]
[1724132662935,0.33168223,61117.0,61116.0,0.01748212]
[1724132664434,0.2827,61117.0,61116.0,0.01748212]
[1724132664628,0.2827,61117.0,61116.0,0.01848212]
[1724132665337,0.2957,61117.0,61116.0,0.04504106]
[1724132665747,0.3097,61117.0,61116.0,0.01948212]
[1724132666129,0.3097,61117.0,61116.0,0.04504106]
[1724132666541,0.3097,61117.0,61116.0,0.04504101]
[1724132667935,4.0797,61117.0,61116.0,0.04504101]
[1724132669147,3.797,61117.0,61116.0,0.04504101]
[1724132670346,3.96022509,61117.0,61116.0,0.002]
[1724132670549,3.96022509,61117.0,61116.0,0.04504049]
[1724132670745,0.081764,61112.0,61111.0,0.04866561]
[1724132670934,0.38730469,61112.0,61111.0,0.04304381]
[1724132671135,0.38730469,61112.0,61111.0,0.02555891]
[1724132671340,0.081768,61109.0,61106.0,0.06487202]
[1724132671533,0.13077003,61108.0,61107.0,0.04305239]
[1724132671939,0.081769,61108.0,61107.0,0.04305239]
[1724132672345,0.081769,61108.0,61104.0,0.04868864]
[1724132672346,0.49092,61108.0,61104.0,0.04868864]
[1724132672645,0.2949,61109.0,61101.0,0.00024553]
[1724132672646,0.6435,61105.0,61102.0,0.0486986]
[1724132672836,0.6435,61105.0,61101.0,0.04894413]
[1724132672837,0.081777,61102.0,61101.0,0.04894413]
[1724132673041,0.081777,61102.0,61101.0,0.09200704]
[1724132673244,3.90073575,61102.0,61101.0,0.00024553]
[1724132673542,3.851777,61102.0,61101.0,0.00024553]
[1724132674345,3.851777,61102.0,61101.0,0.00324553]
[1724132674745,3.851777,61102.0,61101.0,0.00624553]
[1724132675153,3.852777,61102.0,61101.0,0.00324553]
[1724132675349,3.852777,61102.0,61101.0,0.00024553]
[1724132675551,3.854777,61102.0,61101.0,0.00024553]
[1724132676247,4.26446313,61102.0,61101.0,0.00024553]
[1724132676751,3.90366313,61102.0,61101.0,0.00024553]
[1724132676955,4.26446313,61102.0,61101.0,0.00024553]
[1724132677145,4.215577,61102.0,61101.0,0.00024553]
[1724132677351,4.216577,61102.0,61101.0,0.00024553]
[1724132677551,4.214577,61102.0,61101.0,0.00024553]
[1724132677746,4.217577,61102.0,61101.0,0.00024553]
[1724132678151,4.218577,61102.0,61101.0,0.00024553]
[1724132680556,4.1368,61102.0,61101.0,0.00024553]
[1724132680749,0.3668,61102.0,61101.0,0.08202353]
[1724132681350,4.1368,61102.0,61101.0,0.08202353]
[1724132681656,4.1308,61102.0,61101.0,0.08202353]
[1724132681850,4.1308,61102.0,61101.0,0.08702353]
[1724132682447,3.77,61102.0,61101.0,0.08402353]
[1724132682649,3.77,61102.0,61101.0,0.08702353]
[1724132683051,3.77,61102.0,61101.0,0.08402353]
[1724132683351,3.77,61102.0,61101.0,0.08702353]
[1724132683954,4.1308,61102.0,61101.0,0.08702353]
[1724132684345,4.1308,61102.0,61101.0,0.00524553]
[1724132684554,4.2439,61102.0,61101.0,0.00524553]
[1724132685459,4.2439,61102.0,61101.0,0.00324553]
[1724132685655,4.325677,61102.0,61101.0,0.00524553]
[1724132685855,4.325677,61102.0,61101.0,0.00424553]
[1724132687856,4.325677,61102.0,61101.0,0.00324553]
[1724132688654,4.329677,61102.0,61101.0,0.00024553]
[1724132691053,4.327677,61102.0,61101.0,0.00024553]
[1724132691250,4.329677,61102.0,61101.0,0.00024553]
[1724132691964,4.327677,61102.0,61101.0,0.00024553]
[1724132692161,4.329677,61102.0,61101.0,0.00024553]
[1724132693557,4.216577,61102.0,61101.0,0.00024553]
[1724132693758,4.329677,61102.0,61101.0,0.00024553]
[1724132694654,4.327677,61102.0,61101.0,0.00024553]
[1724132694858,4.2459,61102.0,61101.0,0.08202353]
[1724132695054,4.2459,61102.0,61101.0,0.00024553]
[1724132695367,4.2439,61102.0,61101.0,0.00124553]
[1724132695957,4.325677,61102.0,61101.0,0.00124553]
[1724132697156,4.37456313,61102.0,61101.0,0.00124553]
[1724132697363,4.37556313,61102.0,61101.0,0.00024553]
[1724132697970,4.37656313,61102.0,61101.0,0.00024553]
[1724132698269,4.328677,61102.0,61101.0,0.00024553]
[1724132698564,4.37663499,61102.0,61101.0,0.00024553]
[1724132698771,4.329677,61102.0,61101.0,0.00024553]
[1724132699776,4.329677,61102.0,61101.0,0.04889628]
[1724132700264,4.329677,61102.0,61101.0,0.14689555]
[1724132700265,3.93612565,61102.0,61101.0,0.14689555]
[1724132700564,3.8871,61102.0,61101.0,0.14689555]
[1724132700963,3.8851,61102.0,61101.0,0.08202353]
[1724132701270,3.8841,61102.0,61101.0,0.08202353]
[1724132701570,3.8851,61102.0,61101.0,0.08202353]
[1724132701758,3.8841,61102.0,61101.0,0.08202353]
[1724132702166,3.93212386,61102.0,61101.0,0.08302353]
[1724132702469,3.8831,61102.0,61101.0,0.08302353]
[1724132702666,3.93212386,61102.0,61101.0,0.08302353]
[1724132702866,3.8831,61102.0,61101.0,0.08302353]
[1724132703263,3.8831,61102.0,61101.0,0.00124553]
[1724132703573,4.29292386,61102.0,61101.0,0.00124553]
[1724132703767,4.2439,61102.0,61101.0,0.00124553]
[1724132703970,4.325677,61102.0,61101.0,0.06622506]
[1724132704169,4.325677,61102.0,61101.0,0.00124553]
[1724132704565,0.081778,61101.0,61100.0,0.04874289]
[1724132704869,0.14715773,61101.0,61100.0,0.04874289]
[1724132705265,0.081781,61099.0,61096.0,0.06497953]
[1724132705483,0.081781,61099.0,61082.0,0.081803]
[1724132705484,0.081794,61089.0,61088.0,0.04876348]
[1724132705774,0.081798,61086.0,61084.0,0.04876348]
[1724132705960,0.081801,61084.0,61083.0,0.04877297]
[1724132706162,0.442601,61084.0,61083.0,0.04877297]
[1724132706475,0.442601,61084.0,61081.0,0.04877446]
[1724132706675,0.04899453,61082.0,61079.0,0.00024553]
[1724132707159,0.04899453,61082.0,61079.0,0.08205353]
[1724132707365,0.04899453,61083.0,61079.0,0.08205353]
[1724132707564,0.04899453,61083.0,61082.0,0.04872026]
[1724132707761,0.00024553,61090.0,61082.0,0.85192]
[1724132707960,0.00024553,61090.0,61089.0,0.06492676]
[1724132708160,0.00024553,61090.0,61089.0,0.51664837]
[1724132708161,3.77024553,61090.0,61089.0,0.51664837]
[1724132708360,3.77024553,61090.0,61089.0,0.71053797]
[1724132708670,3.77024553,61090.0,61089.0,0.13836119]
[1724132708973,3.77124553,61090.0,61089.0,0.13836119]
[1724132709171,3.77124553,61090.0,61088.0,0.16293333]
[1724132709369,3.77124553,61090.0,61088.0,0.081795]
[1724132709565,3.77124553,61090.0,61089.0,0.02556871]
[1724132709872,3.77224553,61090.0,61089.0,0.02556871]
[1724132710168,3.77224553,61090.0,61089.0,0.03756871]
[1724132710571,3.77124553,61090.0,61089.0,0.03756871]
[1724132710769,3.77224553,61090.0,61089.0,0.04856871]
[1724132710972,3.77224553,61090.0,61089.0,0.04856881]
[1724132711273,3.77224553,61090.0,61089.0,0.023]
[1724132711769,0.081799,61086.0,61084.0,0.04869027]
[1724132711972,0.3608,61085.0,61083.0,0.04869027]
[1724132712174,0.4426,61085.0,61083.0,0.04869027]
[1724132712380,0.081807,61080.0,61079.0,0.00024553]
[1724132713173,3.851807,61080.0,61079.0,0.00024553]
[1724132713375,4.212607,61080.0,61079.0,0.00024553]
[1724132714077,4.213607,61080.0,61079.0,0.00224553]
[1724132715276,4.496507,61080.0,61079.0,0.00224553]
[1724132715672,4.497507,61080.0,61079.0,0.00224553]
[1724132717081,0.081812,61076.0,61075.0,0.04869027]
[1724132717272,0.2829,61076.0,61070.0,0.1535]
[1724132717474,0.3608,61071.0,61070.0,0.1535]
[1724132717781,4.1308,61071.0,61070.0,0.1535]
[1724132718180,4.1308,61071.0,61067.0,0.081824]
[1724132718382,4.212619,61071.0,61067.0,0.081824]
[1724132718677,4.212619,61071.0,61066.0,3.24865]
[1724132718678,4.1308,61071.0,61066.0,3.24865]
[1724132718869,4.1308,61071.0,61066.0,3.24721]
[1724132719275,0.081822,61069.0,61067.0,0.002]
[1724132719975,0.081822,61069.0,61066.0,3.24873]
[1724132720174,0.081822,61069.0,61066.0,3.24921]
[1724132721083,0.001,61069.0,61068.0,0.081822]
[1724132721682,3.77188,61071.0,61070.0,0.08182]
[1724132721882,3.77,61071.0,61070.0,0.08182]
[1724132722082,3.77,61071.0,61067.0,0.3628]
[1724132722384,3.77,61071.0,61067.0,0.444624]
[1724132722784,3.77,61071.0,61067.0,0.3628]
[1724132722979,0.001,61069.0,61068.0,0.083823]
[1724132723380,0.001,61069.0,61068.0,0.575063]
[1724132723579,3.77184,61071.0,61070.0,0.08182]
[1724132723789,3.771,61071.0,61070.0,0.08182]
[1724132724782,3.772,61071.0,61070.0,0.08182]
[1724132725681,3.771,61071.0,61070.0,0.08182]
[1724132726084,3.771,61071.0,61069.0,0.04869027]
[1724132726286,0.002,61071.0,61068.0,0.04856614]
[1724132726480,0.3608,61070.0,61066.0,3.29729614]
[1724132726675,3.77,61068.0,61066.0,3.37760114]
[1724132726983,3.77,61068.0,61067.0,0.04856614]
[1724132728492,3.771,61068.0,61067.0,0.04857584]
[1724132728682,3.771,61068.0,61066.0,3.37917084]
[1724132728878,3.772,61068.0,61067.0,0.002]
[1724132731004,3.772,61068.0,61066.0,3.2260634]
[1724132731005,4.214623,61068.0,61066.0,3.2260634]
[1724132731202,4.214623,61068.0,61066.0,3.2246234]
[1724132731203,0.1522,61067.0,61066.0,3.2246234]
[1724132731400,0.234024,61067.0,61066.0,3.2246234]
[1724132731697,0.081824,61067.0,61066.0,3.2246234]
[1724132731906,3.851824,61067.0,61066.0,3.2246234]
[1724132732591,3.852824,61067.0,61066.0,3.2266234]
[1724132733501,3.771,61067.0,61066.0,3.2266234]
[1724132733698,3.771,61067.0,61066.0,3.3084484]
[1724132733909,3.771,61067.0,61066.0,3.357023]
[1724132734107,3.771,61067.0,61066.0,3.3084484]
[1724132734608,3.772,61067.0,61066.0,3.3084484]
[1724132735511,3.772,61067.0,61066.0,3.37336598]
[1724132735805,3.772,61067.0,61066.0,3.7997284]
[1724132738102,3.772,61067.0,61066.0,4.1605284]
[1724132740105,3.772,61067.0,61066.0,4.24166673]
[1724132740304,3.772,61067.0,61066.0,4.2778096]
[1724132740498,3.772,61067.0,61066.0,3.7865296]
[1724132742108,3.772,61067.0,61066.0,3.7866622]
[1724132744410,3.772,61067.0,61066.0,3.81223915]
[1724132744716,3.772,61067.0,61066.0,3.7866622]
[1724132744906,3.772,61067.0,61066.0,3.81223915]
[1724132745508,3.772,61067.0,61066.0,3.81223916]
[1724132746415,3.772,61067.0,61066.0,3.69482536]
[1724132746616,3.772,61067.0,61066.0,3.81218817]
[1724132747816,3.772,61067.0,61066.0,3.82968605]
[1724132749811,3.772,61067.0,61066.0,3.82968768]
[1724132750914,3.772,61067.0,61066.0,3.55013567]
[1724132751109,3.772,61067.0,61066.0,3.53317283]
[1724132751315,3.772,61067.0,61066.0,3.43277663]
[1724132751714,3.772,61067.0,61066.0,3.55081246]
[1724132751910,3.772,61067.0,61066.0,3.43277663]
[1724132753426,3.772,61067.0,61066.0,3.5508138]
[1724132755623,3.772,61067.0,61066.0,3.47370275]
[1724132755930,3.772,61067.0,61066.0,3.59173815]
[1724132756539,3.772,61067.0,61066.0,3.4264838]
[1724132756720,3.772,61067.0,61066.0,3.51049302]
[1724132757335,3.772,61067.0,61066.0,3.53703376]
[1724132759830,3.772,61067.0,61066.0,3.89783376]
[1724132760332,3.772,61067.0,61066.0,3.89687627]
[1724132760631,3.772,61067.0,61066.0,3.99435433]
[1724132761235,3.772,61067.0,61066.0,3.99434731]
[1724132761427,3.772,61067.0,61066.0,3.89686925]
[1724132761628,3.772,61067.0,61066.0,3.99438469]
[1724132761825,3.772,61067.0,61066.0,3.89686925]
[1724132762429,0.00024553,61077.0,61066.0,3.89686925]
[1724132762430,0.00024553,61077.0,61066.0,5.12844058]
[1724132762632,0.45889008,61095.0,61066.0,5.12844058]
[1724132762633,0.0489815,61096.0,61076.0,1.0045]
[1724132762829,0.06532689,61099.0,61097.0,0.081783]
[1724132762830,0.0489815,61099.0,61097.0,0.081783]
[1724132763033,0.1987815,61102.0,61098.0,0.16520529]
[1724132763231,0.1987815,61102.0,61099.0,0.16520529]
[1724132763232,0.1498,61102.0,61099.0,0.16520529]
[1724132763438,0.1498,61102.0,61100.0,0.02557575]
[1724132763628,0.1498,61102.0,61101.0,0.02557575]
[1724132763827,3.9198,61102.0,61101.0,0.02557575]
[1724132764236,3.9198,61102.0,61101.0,0.04862471]
[1724132764535,3.9198,61102.0,61101.0,0.01091352]
[1724132764732,3.77,61102.0,61100.0,0.04862471]
[1724132764931,3.77,61102.0,61098.0,0.06483295]
[1724132765128,3.77,61102.0,61101.0,0.04862357]
[1724132765325,3.782,61102.0,61101.0,0.04862357]
[1724132765527,3.783,61102.0,61101.0,0.04962357]
[1724132765723,3.783,61102.0,61101.0,0.001]
[1724132766126,3.782,61102.0,61098.0,0.04962357]
[1724132766435,3.782,61102.0,61098.0,0.13140557]
[1724132766736,3.782,61102.0,61098.0,0.082782]
[1724132767039,3.782,61102.0,61098.0,0.001]
[1724132767334,4.1428,61102.0,61098.0,0.002]
[1724132767628,3.863777,61102.0,61098.0,0.001]
[1724132767834,3.864777,61102.0,61101.0,0.001]
[1724132768221,3.783,61102.0,61098.0,0.001]
[1724132768427,3.783,61102.0,61098.0,0.002]
[1724132768733,3.783,61102.0,61100.0,0.081779]
[1724132768937,3.783,61102.0,61101.0,0.001]
[1724132768938,3.782,61102.0,61101.0,0.001]
[1724132769624,3.782,61102.0,61100.0,0.081779]
[1724132770639,3.784,61102.0,61101.0,0.001]
[1724132771329,3.771,61102.0,61101.0,0.001]
[1724132771634,3.785,61102.0,61101.0,0.001]
[1724132772428,3.771,61102.0,61101.0,0.001]
[1724132772733,3.772,61102.0,61101.0,0.002]
[1724132780441,3.772,61102.0,61095.0,0.01085898]
[1724132780442,0.081779,61101.0,61095.0,0.01085898]
[1724132781036,3.77,61096.0,61095.0,0.01085898]
[1724132781941,3.77,61096.0,61095.0,0.01185898]
[1724132782136,3.77,61096.0,61095.0,0.01285898]
[1724132782541,3.771,61096.0,61095.0,0.01285898]
[1724132783747,3.78,61096.0,61095.0,0.01285898]
[1724132784147,3.78,61096.0,61095.0,0.09464498]
[1724132784843,3.78,61096.0,61095.0,0.45544498]
[1724132785237,3.78,61096.0,61095.0,0.65346855]
[1724132785437,3.78,61096.0,61095.0,0.60484498]
[1724132786145,0.01,61096.0,61095.0,1.57767098]
[1724132786337,0.00024553,61107.0,61106.0,0.081772]
[1724132786536,0.00024553,61107.0,61106.0,1.216432]
[1724132787050,0.00024553,61107.0,61106.0,0.50730923]
[1724132787440,0.00024553,61107.0,61106.0,0.442572]
[1724132787641,0.01424553,61107.0,61106.0,0.50833265]
[1724132788348,0.01524553,61107.0,61106.0,0.444572]
[1724132788548,3.78524553,61107.0,61106.0,0.50937037]
[1724132789350,3.78524553,61107.0,61106.0,0.444572]
[1724132790346,3.78524553,61107.0,61106.0,0.083772]
[1724132790858,3.78524553,61107.0,61106.0,0.09449114]
[1724132791251,3.78524553,61107.0,61106.0,0.14311895]
[1724132791548,3.78524553,61107.0,61106.0,0.09449114]
[1724132791747,3.78524553,61107.0,61106.0,0.15932676]
[1724132792551,3.78524553,61107.0,61106.0,0.09449114]
[1724132792751,3.78524553,61107.0,61106.0,0.002]
[1724132792948,3.86701553,61107.0,61106.0,0.002]
[1724132793565,3.86701553,61107.0,61106.0,0.05071591]
[1724132794857,4.95910553,61107.0,61101.0,0.06494187]
[1724132795052,0.081778,61101.0,61100.0,0.04872561]
[1724132795255,0.081778,61101.0,61099.0,0.01054709]
[1724132795561,3.77,61100.0,61099.0,0.04872561]
[1724132795754,3.77,61100.0,61097.0,0.06494187]
[1724132796344,3.77,61100.0,61099.0,0.04873103]
[1724132796552,3.77,61100.0,61096.0,0.0755787]
[1724132797461,3.77,61100.0,61099.0,0.04873415]
[1724132797762,3.776,61100.0,61099.0,0.04873427]
[1724132798353,3.77,61100.0,61099.0,0.04873427]
[1724132798549,3.773,61100.0,61096.0,0.0755787]
[1724132798758,3.773,61100.0,61099.0,0.0487359]
[1724132799362,3.776,61100.0,61099.0,0.0497359]
[1724132800476,3.85478,61100.0,61099.0,0.001]
[1724132800656,3.86078,61100.0,61099.0,0.001]
[1724132800957,0.081785,61096.0,61095.0,0.00024553]
[1724132801660,3.851785,61096.0,61095.0,0.00024553]
[1724132802252,3.852785,61096.0,61095.0,0.00024553]
[1724132802457,3.854785,61096.0,61095.0,0.00024553]
[1724132803655,3.854785,61096.0,61095.0,0.04899342]
[1724132804554,3.90371501,61096.0,61095.0,0.04899342]
[1724132805178,3.90371501,61096.0,61095.0,0.00024553]
[1724132805555,0.081788,61094.0,61093.0,0.04874789]
[1724132805852,0.081788,61094.0,61088.0,0.06494187]
[1724132805853,0.081789,61093.0,61092.0,0.04874789]
[1724132806053,0.081789,61093.0,61087.0,0.14673887]
[1724132806054,0.27241901,61093.0,61091.0,0.04874789]
[1724132806250,0.27241901,61093.0,61085.0,0.37163346]
[1724132806251,0.5158,61092.0,61088.0,0.13054389]
[1724132806460,3.77,61089.0,61088.0,0.081796]
[1724132807265,3.77,61089.0,61088.0,0.13054389]
[1724132807558,3.77,61089.0,61088.0,0.081796]
[1724132807967,3.77,61089.0,61088.0,0.086796]
[1724132808269,3.77,61089.0,61088.0,0.03057025]
[1724132808270,3.851794,61089.0,61088.0,0.03057025]
[1724132808583,3.851794,61089.0,61088.0,0.005]
[1724132809156,4.212594,61089.0,61088.0,0.005]
[1724132809356,4.212594,61089.0,61088.0,0.01]
[1724132809761,3.77,61089.0,61088.0,0.005]
[1724132809962,3.77,61089.0,61088.0,0.008]
[1724132810159,3.77,61089.0,61088.0,0.003]
[1724132810360,3.772,61089.0,61088.0,0.003]
[1724132810558,3.772,61089.0,61085.0,0.04874789]
[1724132810756,3.772,61089.0,61086.0,0.02557031]
[1724132810757,3.773,61089.0,61086.0,0.02557031]
[1724132810952,3.771,61089.0,61085.0,0.04874789]
[1724132811166,3.774,61089.0,61086.0,0.02557077]
[1724132811362,3.774,61089.0,61088.0,0.081796]
[1724132812563,3.771,61089.0,61088.0,0.081796]
[1724132812771,3.77,61089.0,61088.0,0.081796]
[1724132813973,3.773,61089.0,61088.0,0.081796]
[1724132814360,3.774,61089.0,61088.0,0.081796]
[1724132818961,3.774,61089.0,61084.0,0.04899342]
[1724132818962,3.855794,61089.0,61084.0,0.04899342]
[1724132819162,0.3608,61085.0,61084.0,0.04899342]
[1724132819359,0.3608,61085.0,61084.0,0.00024553]
[1724132819569,4.1308,61085.0,61084.0,0.00024553]
[1724132820270,4.22323944,61085.0,61084.0,0.00324553]
[1724132820763,4.22323944,61085.0,61084.0,0.00524553]
[1724132821469,4.27216945,61085.0,61084.0,0.00524553]
[1724132822566,4.22323944,61085.0,61084.0,0.00524553]
[1724132824767,4.71435944,61085.0,61084.0,0.00524553]
[1724132825070,5.27435944,61085.0,61075.0,0.04874789]
[1724132825271,0.3608,61076.0,61072.0,0.04874789]
[1724132825469,0.3608,61076.0,61071.0,0.14141747]
[1724132825669,3.77,61075.0,61071.0,0.14141747]
[1724132826271,3.77,61075.0,61071.0,0.09266958]
[1724132826573,3.77,61075.0,61071.0,0.14141747]
[1724132826964,3.851814,61075.0,61072.0,0.081817]
[1724132827173,3.77,61075.0,61071.0,0.014]
[1724132827768,0.081817,61072.0,61071.0,0.014]
[1724132827978,0.081817,61072.0,61071.0,0.028]
[1724132828375,3.851817,61072.0,61071.0,0.028]
[1724132829277,3.851817,61072.0,61071.0,0.014]
[1724132829467,3.851817,61072.0,61070.0,0.01079853]
[1724132829667,0.3608,61071.0,61067.0,0.22406853]
[1724132830879,0.3608,61071.0,61067.0,0.23499654]
[1724132831086,0.3618,61071.0,61067.0,0.24899654]
[1724132831276,0.3618,61071.0,61067.0,0.26299654]
[1724132832075,0.443619,61071.0,61067.0,0.26299654]
[1724132832773,0.082819,61071.0,61067.0,0.26299654]
[1724132832974,0.443619,61071.0,61067.0,0.26299654]
[1724132834384,0.001,61071.0,61069.0,0.3608]
[1724132834582,0.001,61071.0,61070.0,0.1131]
[1724132835289,0.001,61071.0,61070.0,0.19492]
[1724132836080,0.001,61071.0,61070.0,0.08182]
[1724132836284,3.77084,61072.0,61071.0,0.081819]
[1724132836479,3.77,61072.0,61071.0,0.081819]
[1724132837682,3.77,61072.0,61071.0,0.085819]
[1724132837874,3.77,61072.0,61071.0,0.10335302]
[1724132838188,3.77,61072.0,61071.0,0.10835302]
[1724132838386,3.77,61072.0,61071.0,0.1339276]
[1724132839588,3.77,61072.0,61071.0,0.11639358]
[1724132840286,3.77,61072.0,61071.0,0.13391517]
[1724132840883,3.77,61072.0,61071.0,0.1163928]
[1724132841183,3.77,61072.0,61071.0,0.090819]
[1724132841586,3.77,61072.0,61071.0,0.15577856]
[1724132841983,3.77,61072.0,61071.0,0.090819]
[1724132842183,3.77,61072.0,61071.0,0.11639458]
[1724132843690,3.77,61072.0,61071.0,0.090819]
[1724132843881,3.77,61072.0,61071.0,0.11639456]
[1724132844289,3.77,61072.0,61071.0,0.13392172]
[1724132845890,3.77,61072.0,61071.0,0.05210272]
[1724132846102,3.77,61072.0,61071.0,0.0740384]
[1724132846297,3.77,61072.0,61071.0,0.09961527]
[1724132846496,3.77,61072.0,61071.0,0.009]
[1724132847803,3.77,61072.0,61071.0,0.0740384]
[1724132848098,3.77,61072.0,61071.0,0.009]
[1724132848492,3.77,61072.0,61071.0,0.0740384]
[1724132848703,3.77,61072.0,61071.0,0.009]
[1724132848901,3.77,61072.0,61071.0,0.2148771]
[1724132849106,3.77,61072.0,61071.0,0.24679198]
[1724132849306,3.77,61072.0,61071.0,0.32814097]
[1724132849501,3.77,61072.0,61071.0,0.24679198]
[1724132851703,3.77,61072.0,61071.0,0.28771093]
[1724132852006,0.00024553,61079.0,61078.0,0.081809]
[1724132852203,0.00024553,61079.0,61078.0,0.12491771]
[1724132852404,3.77024553,61079.0,61078.0,0.12490996]
[1724132852811,3.77024553,61079.0,61073.0,0.16315734]
[1724132853110,3.77024553,61079.0,61074.0,0.04310471]
[1724132853111,0.04900629,61077.0,61074.0,0.04310471]
[1724132853412,0.04900629,61077.0,61075.0,0.04310471]
[1724132853599,0.04900629,61077.0,61076.0,0.04310471]
[1724132854011,3.85997353,61079.0,61076.0,0.0431044]
[1724132854213,3.85997353,61079.0,61073.0,0.081816]
[1724132854214,3.85505353,61079.0,61077.0,0.0650769]
[1724132854407,3.85505353,61079.0,61078.0,0.04310596]
[1724132855414,3.85205353,61079.0,61078.0,0.04310596]
[1724132855609,3.77024553,61079.0,61078.0,0.04310596]
[1724132855912,3.81925026,61079.0,61078.0,0.04310596]
[1724132856312,3.82225026,61079.0,61078.0,0.04310596]
[1724132856513,3.77324553,61079.0,61078.0,0.05401779]
[1724132857214,3.77724553,61079.0,61078.0,0.05401779]
[1724132857910,3.77724553,61079.0,61078.0,0.11909051]
[1724132858106,3.77724553,61079.0,61078.0,0.04310596]
[1724132858514,3.82625286,61079.0,61078.0,0.04310596]
[1724132858715,3.77724553,61079.0,61078.0,0.04310596]
[1724132858915,3.82625286,61079.0,61078.0,0.04310596]
[1724132859218,3.82625286,61079.0,61078.0,0.04310662]
[1724132859512,3.82625286,61079.0,61078.0,0.1081852]
[1724132859917,3.77724553,61079.0,61078.0,0.1081852]
[1724132860212,3.82625286,61079.0,61078.0,0.1081852]
[1724132860416,3.77724553,61079.0,61078.0,0.04310662]
[1724132860718,3.77724553,61079.0,61078.0,0.12491562]